{"text_format":"1","workbook":"xlsx","n_sheets":3,"sheets":["2019","2020","Feuil3"],"not_rendered":{"charts":0,"images":0,"macros":0,"external_links":0,"defined_names":0,"comments":0,"pivot_tables":0},"unopened":[],"bounds":{"document_bytes":16777216,"sheet_cells":100000,"rows_first":2000,"rows_last":500,"rows_between":2000,"halvings":0,"cell_chars":16384,"cell_head_chars":4096},"cells_cut":0,"cells_raw":0,"read":"whole","date_system":"1900"}

{"sheet":"2019","index":0,"n_rows":96,"n_cols":39,"rows_kept":96,"cut":false,"hidden":false,"merged":[]}
[]
[null,null,null,null,null,null,null,null,"Ponctualité (Prise de service des collaborateurs)",null,null,null,null,null,null,null,null,null,null,null,2019]
["Mai "]
[]
["Jours du mois","2019-05-01","2019-05-02","2019-05-03","2019-05-04","2019-05-05","2019-05-06","2019-05-07","2019-05-08","2019-05-09","2019-05-10","2019-05-11","2019-05-12","2019-05-13","2019-05-14","2019-05-15","2019-05-16","2019-05-17","2019-05-18","2019-05-19","2019-05-20","2019-05-21","2019-05-22","2019-05-23","2019-05-24","2019-05-25","2019-05-26","2019-05-27","2019-05-28","2019-05-29","2019-05-30","2019-05-31","Total","Total","Observations"]
["Liste des agents",null,null,null,null,null,null,null,null,null,null,null,null,null,null,null,null,null,null,null,null,null,null,null,null,null,null,null,null,null,null,null,"HT","HA"]
["NTSAME NGOU Patricia"]
["KOGHOU Cornelia"]
["MINKWE NGUEMA Orlane N"]
["BELLA Corrine Grace"]
["KELE ALO Lydia"]
["ELLANG Romuald Davy"]
[]
["Juin "]
[]
["Jours du mois","2019-06-01","2019-06-02","2019-06-03","2019-06-04","2019-06-05","2019-06-06","2019-06-07","2019-06-08","2019-06-09","2019-06-10","2019-06-11","2019-06-12","2019-06-13","2019-06-14","2019-06-15","2019-06-16","2019-06-17","2019-06-18","2019-06-19","2019-06-20","2019-06-21","2019-06-22","2019-06-23","2019-06-24","2019-06-25","2019-06-26","2019-06-27","2019-06-28","2019-06-29","2019-06-30","Total","Total",null,"Observations"]
["Liste des agents",null,null,null,null,null,null,null,null,null,null,null,null,null,null,null,null,null,null,null,null,null,null,null,null,null,null,null,null,null,null,"HT","HA"]
["NTSAME NGOU Patricia"]
["KOGHOU Cornelia"]
["MINKWE NGUEMA Orlane N"]
["BELLA Corrine Grace"]
["KELE ALO Lydia"]
["ELLANG Romuald Davy"]
[]
["Juillet "]
[]
["Jours du mois","2019-07-01","2019-07-02","2019-07-03","2019-07-04","2019-07-05","2019-07-06","2019-07-07","2019-07-08","2019-07-09","2019-07-10","2019-07-11","2019-07-12","2019-07-13","2019-07-14","2019-07-15","2019-07-16","2019-07-17","2019-07-18","2019-07-19","2019-07-20","2019-07-21","2019-07-22","2019-07-23","2019-07-24","2019-07-25","2019-07-26","2019-07-27","2019-07-28","2019-07-29","2019-07-30","2019-07-31","Total","Total","Observations"]
["Liste des agents",null,null,null,null,null,null,null,null,null,null,null,null,null,null,null,null,null,null,null,null,null,null,null,null,null,null,null,null,null,null,null,"HT","HA"]
["NTSAME NGOU Patricia"]
["KOGHOU Cornelia"]
["MINKWE NGUEMA Orlane N"]
["BELLA Corrine Grace"]
["KELE ALO Lydia"]
["ELLANG Romuald Davy"]
[]
["Aout "]
[]
["Jours du mois","2019-08-01","2019-08-02","2019-08-03","2019-08-04","2019-08-05","2019-08-06","2019-08-07","2019-08-08","2019-08-09","2019-08-10","2019-08-11","2019-08-12","2019-08-13","2019-08-14","2019-08-15","2019-08-16","2019-08-17","2019-08-18","2019-08-19","2019-08-20","2019-08-21","2019-08-22","2019-08-23","2019-08-24","2019-08-25","2019-08-26","2019-08-27","2019-08-28","2019-08-29","2019-08-30","2019-08-31","Total","Total","Observations"]
["Liste des agents",null,null,null,null,null,null,null,null,null,null,null,null,null,null,null,null,null,null,null,null,null,null,null,null,null,null,null,null,null,null,null,"HT","HA"]
["NTSAME NGOU Patricia"]
["KOGHOU Cornelia"]
["MINKWE NGUEMA Orlane N"]
["BELLA Corrine Grace"]
["KELE ALO Lydia"]
["ELLANG Romuald Davy"]
[]
["Septembre "]
[]
["Jours du mois","2019-09-01","2019-09-02","2019-09-03","2019-09-04","2019-09-05","2019-09-06","2019-09-07","2019-09-08","2019-09-09","2019-09-10","2019-09-11","2019-09-12","2019-09-13","2019-09-14","2019-09-15","2019-09-16","2019-09-17","2019-09-18","2019-09-19","2019-09-20","2019-09-21","2019-09-22","2019-09-23","2019-09-24","2019-09-25","2019-09-26","2019-09-27","2019-09-28","2019-09-29","2019-09-30","Total","Total",null,"Observations"]
["Liste des agents",null,null,null,null,null,null,null,null,null,null,null,null,null,null,null,null,null,null,null,null,null,null,null,null,null,null,null,null,null,null,"HT","HA"]
["NTSAME NGOU Patricia"]
["KOGHOU Cornelia"]
["MINKWE NGUEMA Orlane N"]
["BELLA Corrine Grace"]
["KELE ALO Lydia"]
["ELLANG Romuald Davy"]
[]
["Octobre"]
[]
["Jours du mois","2019-10-01","2019-10-02","2019-10-03","2019-10-04","2019-10-05","2019-10-06","2019-10-07","2019-10-08","2019-10-09","2019-10-10","2019-10-11","2019-10-12","2019-10-13","2019-10-14","2019-10-15","2019-10-16","2019-10-17","2019-10-18","2019-10-19","2019-10-20","2019-10-21","2019-10-22","2019-10-23","2019-10-24","2019-10-25","2019-10-26","2019-10-27","2019-10-28","2019-10-29","2019-10-30","2019-10-31","Total","Total","Observations"]
["Liste des agents",null,null,null,null,null,null,null,null,null,null,null,null,null,null,null,null,null,null,null,null,null,null,null,null,null,null,null,null,null,null,null,"HT","HA"]
["NTSAME NGOU Patricia"]
["KOGHOU Cornelia"]
["MINKWE NGUEMA Orlane N"]
["BELLA Corrine Grace"]
["KELE ALO Lydia"]
["ELLANG Romuald Davy"]
[]
["Novembre "]
[]
["Jours du mois","2019-11-01","2019-11-02","2019-11-03","2019-11-04","2019-11-05","2019-11-06","2019-11-07","2019-11-08","2019-11-09","2019-11-10","2019-11-11","2019-11-12","2019-11-13","2019-11-14","2019-11-15","2019-11-16","2019-11-17","2019-11-18","2019-11-19","2019-11-20","2019-11-21","2019-11-22","2019-11-23","2019-11-24","2019-11-25","2019-11-26","2019-11-27","2019-11-28","2019-11-29","2019-11-30","Total","Total",null,"Observations"]
["Liste des agents",null,null,null,null,null,null,null,null,null,null,null,null,null,null,null,null,null,null,null,null,null,null,null,null,null,null,null,null,null,null,"HT","HA"]
["NTSAME NGOU Patricia"]
["KOGHOU Cornelia"]
["MINKWE NGUEMA Orlane N"]
["BELLA Corrine Grace"]
["KELE ALO Lydia"]
["ELLANG Romuald Davy"]
[]
["Décembre "]
[]
["Jours du mois","2019-12-01","2019-12-02","2019-12-03","2019-12-04","2019-12-05","2019-12-06","2019-12-07","2019-12-08","2019-12-09","2019-12-10","2019-12-11","2019-12-12","2019-12-13","2019-12-14","2019-12-15","2019-12-16","2019-12-17","2019-12-18","2019-12-19","2019-12-20","2019-12-21","2019-12-22","2019-12-23","2019-12-24","2019-12-25","2019-12-26","2019-12-27","2019-12-28","2019-12-29","2019-12-30","2019-12-31","Total","Total","Observations"]
["Liste des agents",null,null,null,null,null,null,null,null,null,null,null,null,null,null,null,null,null,null,null,null,null,null,null,null,null,null,null,null,null,null,null,"HT","HA"]
["NTSAME NGOU Patricia"]
["KOGHOU Cornelia"]
["MINKWE NGUEMA Orlane N"]
["BELLA Corrine Grace"]
["KELE ALO Lydia"]
["ELLANG Romuald Davy"]
[null,null,null,null,null,null,null,null,null,null,null,null,null,null,null,null,null,null,null,null,null,null,null,null,null,null,null,null,null,null,null,null,null,null,null,null,"Légende:","7H30",5]
[null,null,null,null,null,null,null,null,null,null,null,null,null,null,null,null,null,null,null,null,null,null,null,null,null,null,null,null,null,null,null,null,null,null,null,null,null,"7H45",4]
[null,null,null,null,null,null,null,null,null,null,null,null,null,null,null,null,null,null,null,null,null,null,null,null,null,null,null,null,null,null,null,null,null,null,null,null,null,"8H00",3]
[null,null,null,null,null,null,null,null,null,null,null,null,null,null,null,null,null,null,null,null,null,null,null,null,null,null,null,null,null,null,null,null,null,null,null,null,null,">8H00",1]
[null,null,null,null,null,null,null,null,null,null,null,null,null,null,null,null,null,null,null,null,null,null,null,null,null,null,null,null,null,null,null,null,null,null,null,null,null,"HT","Heures travaillées"]
[null,null,null,null,null,null,null,null,null,null,null,null,null,null,null,null,null,null,null,null,null,null,null,null,null,null,null,null,null,null,null,null,null,null,null,null,null,"HA","Heures d'absence"]
[null,null,null,null,null,null,null,null,null,null,null,null,null,null,null,null,null,null,null,null,null,null,null,null,null,null,null,null,null,null,null,null,null,null,null,null,null,"Jours week-end et férié"]

{"sheet":"2020","index":1,"n_rows":90,"n_cols":44,"rows_kept":90,"cut":false,"hidden":false,"merged":[[49,36,50,36],[60,36,61,36],[71,36,72,36],[82,36,83,36],[0,41,0,42],[4,36,5,36],[16,36,17,36],[27,36,28,36],[38,36,39,36]]}
[]
[null,null,null,null,null,null,null,null,"Ponctualité (Prise de service des collaborateurs)",null,null,null,null,null,null,null,null,null,null,null,null,null,null,null,null,null,null,null,null,null,null,null,null,null,null,null,"Jours ouvrés","Val. Max"]
["Mai ",null,null,null,null,null,null,null,null,null,null,null,null,null,null,null,null,null,null,null,null,null,null,null,null,null,null,null,null,null,null,null,null,null,null,null,21,{"$f":"AK3*5","v":105}]
[]
["Jours du mois","2019-05-01","2019-05-02","2019-05-03","2019-05-04","2019-05-05","2019-05-06","2019-05-07","2019-05-08","2019-05-09","2019-05-10","2019-05-11","2019-05-12","2019-05-13","2019-05-14","2019-05-15","2019-05-16","2019-05-17","2019-05-18","2019-05-19","2019-05-20","2019-05-21","2019-05-22","2019-05-23","2019-05-24","2019-05-25","2019-05-26","2019-05-27","2019-05-28","2019-05-29","2019-05-30","2019-05-31","Total","Total","Observations",null,"% Ponctualité"]
["Liste des agents",null,null,null,null,null,null,null,null,null,null,null,null,null,null,null,null,null,null,null,null,null,null,null,null,null,null,null,null,null,null,null,"HT","HA"]
[" Patricia",null,null,null,null,null,null,null,null,null,null,null,null,null,null,null,null,null,null,null,null,null,null,null,null,null,null,null,8,5,null,5,{"$f":"SUMIF(C7:AF7,\"5\")","v":10},{"$f":"COUNTIF(B7:AF7,1)","v":0},null,null,{"$f":"AG7/(5*COUNTA(B7:AF7))","v":0.66666666666666663},null,"Légende:",null,null,"≤  7H30",5]
[" Cornelia",null,null,null,null,null,null,null,null,null,null,null,null,null,null,null,null,null,null,null,null,null,null,null,null,null,null,null,null,null,null,null,{"$f":"SUMIF(C8:AF8,\"5\")","v":0},{"$f":"COUNTIF(B8:AF8,1)","v":0},null,null,{"$f":"AG8/(5*COUNTA(B8:AF8))","v":{"$error":"#DIV/0!"}},null,null,null,null,"> 7H30 ≤  7H45",4]
[" Orlane N",null,null,null,null,null,null,null,null,null,null,null,null,null,null,null,null,null,null,null,null,null,null,null,null,null,null,null,null,null,null,null,0,0,null,null,{"$error":"#DIV/0!"},null,null,null,null,"> 7H45 justifié",3]
["Corrine Grace",null,null,null,null,null,null,null,null,null,null,null,null,null,null,null,null,null,null,null,null,null,null,null,null,null,null,null,null,null,null,null,0,0,null,null,{"$error":"#DIV/0!"},null,null,null,null,"> 7H45 non justifié",1]
[" Lydia",null,null,null,null,null,null,null,null,null,null,null,null,null,null,null,null,null,null,null,null,null,null,null,null,null,null,null,null,null,null,null,0,0,null,null,{"$error":"#DIV/0!"},null,null,null,null,"HT","Heures travaillées"]
[" Romuald Davy",null,null,null,null,null,null,null,null,null,null,null,null,null,null,null,null,null,null,null,null,null,null,null,null,null,null,null,null,null,null,null,0,0,null,null,{"$error":"#DIV/0!"},null,null,null,null,"HA","Heures d'absence"]
[null,null,null,null,null,null,null,null,null,null,null,null,null,null,null,null,null,null,null,null,null,null,null,null,null,null,null,null,null,null,null,null,null,null,null,null,null,null,null,null,null,"Jours week-end et férié"]
["Juin ",null,null,null,null,null,null,null,null,null,null,null,null,null,null,null,null,null,null,null,null,null,null,null,null,null,null,null,null,null,null,null,null,null,null,null,"Jours ouvrés","Val. Max"]
[null,null,null,null,null,null,null,null,null,null,null,null,null,null,null,null,null,null,null,null,null,null,null,null,null,null,null,null,null,null,null,null,null,null,null,null,19,{"$f":"AK15*5","v":95}]
[]
["Jours du mois","2019-06-01","2019-06-02","2019-06-03","2019-06-04","2019-06-05","2019-06-06","2019-06-07","2019-06-08","2019-06-09","2019-06-10","2019-06-11","2019-06-12","2019-06-13","2019-06-14","2019-06-15","2019-06-16","2019-06-17","2019-06-18","2019-06-19","2019-06-20","2019-06-21","2019-06-22","2019-06-23","2019-06-24","2019-06-25","2019-06-26","2019-06-27","2019-06-28","2019-06-29","2019-06-30","Total","Total",null,"Observations",null,"% Ponctualité",null,null,null,null,"Divers"]
["Liste des agents",null,null,null,null,null,null,null,null,null,null,null,null,null,null,null,null,null,null,null,null,null,null,null,null,null,null,null,null,null,null,"HT","HA",null,null,null,null,null,null,null,null,null,"Congés",6]
[" Patricia",null,null,null,null,null,null,null,null,null,null,null,null,null,null,null,null,null,null,null,null,null,null,null,null,null,null,5,5,null,null,{"$f":"SUMIF(B19:AE19,\"5\")","v":10},{"$f":"COUNTIF(A19:AE19,1)","v":0},null,null,null,{"$f":"AF19/(5*COUNTA(B19:AC19))","v":1},null,null,null,null,null,"Intérim",7]
[" Cornelia",null,null,null,null,null,null,null,null,null,null,null,null,null,null,null,null,null,null,null,null,null,null,null,null,null,null,null,8,null,null,{"$f":"SUMIF(B20:AE20,\"5\")","v":0},{"$f":"COUNTIF(A20:AE20,1)","v":0},null,null,null,{"$f":"AF20/(5*COUNTA(B20:AC20))","v":0},null,null,null,null,null,"Maladie",8]
[" Orlane N",null,null,null,null,null,null,null,null,null,null,null,null,null,null,null,null,null,null,null,null,null,null,null,null,null,null,null,null,null,null,0,0,null,null,null,{"$error":"#DIV/0!"}]
[" Corrine Grace",null,null,null,null,null,null,null,null,null,null,null,null,null,null,null,null,null,null,null,null,null,null,null,null,null,null,null,null,null,null,0,0,null,null,null,{"$error":"#DIV/0!"}]
["Lydia",null,null,null,null,null,null,null,null,null,null,null,null,null,null,null,null,null,null,null,null,null,null,null,null,null,null,null,null,null,null,0,0,null,null,null,{"$error":"#DIV/0!"}]
[" Romuald Davy",null,null,null,null,null,null,null,null,null,null,null,null,null,null,null,null,null,null,null,null,null,null,null,null,null,null,null,null,null,null,0,0,null,null,null,{"$error":"#DIV/0!"}]
[]
["Juillet ",null,null,null,null,null,null,null,null,null,null,null,null,null,null,null,null,null,null,null,null,null,null,null,null,null,null,null,null,null,null,null,null,null,null,null,"Jours ouvrés","Val. Max"]
[null,null,null,null,null,null,null,null,null,null,null,null,null,null,null,null,null,null,null,null,null,null,null,null,null,null,null,null,null,null,null,null,null,null,null,null,23,{"$f":"AK27*5","v":115}]
["Jours du mois","2019-07-01","2019-07-02","2019-07-03","2019-07-04","2019-07-05","2019-07-06","2019-07-07","2019-07-08","2019-07-09","2019-07-10","2019-07-11","2019-07-12","2019-07-13","2019-07-14","2019-07-15","2019-07-16","2019-07-17","2019-07-18","2019-07-19","2019-07-20","2019-07-21","2019-07-22","2019-07-23","2019-07-24","2019-07-25","2019-07-26","2019-07-27","2019-07-28","2019-07-29","2019-07-30","2019-07-31","Total","Total","Observations",null,"% Ponctualité"]
["Liste des agents",null,null,null,null,null,null,null,null,null,null,null,null,null,null,null,null,null,null,null,null,null,null,null,null,null,null,null,null,null,null,null,"HT","HA"]
[" Patricia",null,null,null,null,null,null,null,null,null,null,null,null,null,null,null,null,null,null,null,null,null,null,null,null,null,null,null,null,null,null,null,{"$f":"SUMIF(B30:AF30,\"5\")","v":0},{"$f":"COUNTIF(B30:AF30,1)","v":0},null,null,{"$f":"AF30/(5*COUNTA(B30:AF30))","v":{"$error":"#DIV/0!"}}]
["Cornelia",null,null,null,null,null,null,null,null,null,null,null,null,null,null,null,null,null,null,null,null,null,null,null,null,null,null,null,null,null,null,null,{"$f":"SUMIF(B31:AF31,\"5\")","v":0},{"$f":"COUNTIF(B31:AF31,1)","v":0},null,null,{"$f":"AF31/(5*COUNTA(B31:AF31))","v":{"$error":"#DIV/0!"}}]
[" Orlane N",null,null,null,null,null,null,null,null,null,null,null,null,null,null,null,null,null,null,null,null,null,null,null,null,null,null,null,null,null,null,null,0,0,null,null,{"$error":"#DIV/0!"}]
[" Grace",null,null,null,null,null,null,null,null,null,null,null,null,null,null,null,null,null,null,null,null,null,null,null,null,5,null,null,null,null,null,null,5,{"$f":"COUNTIF(B33:AF33,\"1\")","v":0},null,null,{"$f":"AG33/(5*COUNTA(B33:AF33))","v":1}]
["Lydia",null,null,null,null,null,null,null,null,null,null,null,null,null,null,null,null,null,null,null,null,null,null,null,null,null,null,null,null,null,null,null,0,0,null,null,{"$error":"#DIV/0!"}]
[" Romuald Davy",null,null,null,null,null,null,null,null,null,null,null,null,null,null,null,null,null,null,null,null,null,null,null,null,null,null,null,null,null,null,null,0,0,null,null,{"$error":"#DIV/0!"}]
[]
["Aout ",null,null,null,null,null,null,null,null,null,null,null,null,null,null,null,null,null,null,null,null,null,null,null,null,null,null,null,null,null,null,null,null,null,null,null,"Jours ouvrés","Val. Max"]
[null,null,null,null,null,null,null,null,null,null,null,null,null,null,null,null,null,null,null,null,null,null,null,null,null,null,null,null,null,null,null,null,null,null,null,null,20,{"$f":"AK38*5","v":100}]
["Jours du mois","2019-08-01","2019-08-02","2019-08-03","2019-08-04","2019-08-05","2019-08-06","2019-08-07","2019-08-08","2019-08-09","2019-08-10","2019-08-11","2019-08-12","2019-08-13","2019-08-14","2019-08-15","2019-08-16","2019-08-17","2019-08-18","2019-08-19","2019-08-20","2019-08-21","2019-08-22","2019-08-23","2019-08-24","2019-08-25","2019-08-26","2019-08-27","2019-08-28","2019-08-29","2019-08-30","2019-08-31","Total","Total","Observations",null,"% Ponctualité"]
["Liste des agents",null,null,null,null,null,null,null,null,null,null,null,null,null,null,null,null,null,null,null,null,null,null,null,null,null,null,null,null,null,null,null,"HT","HA"]
["Patricia",null,null,null,null,null,null,null,null,null,null,null,null,null,null,null,null,null,null,null,null,null,null,null,null,null,null,null,null,null,null,null,{"$f":"SUMIF(B41:AF41,\"5\")","v":0},{"$f":"COUNTIF(B41:AF41,1)","v":0},null,null,{"$f":"AG41/(5*COUNTA(B41:AF41))","v":{"$error":"#DIV/0!"}}]
[" Cornelia",null,null,null,null,null,null,null,null,null,null,null,null,null,null,null,null,null,null,null,null,null,null,null,null,null,null,null,null,null,null,null,{"$f":"SUMIF(B42:AF42,\"5\")","v":0},{"$f":"COUNTIF(B42:AF42,1)","v":0},null,null,{"$f":"AG42/(5*COUNTA(B42:AF42))","v":{"$error":"#DIV/0!"}}]
[" Orlane N",null,null,null,null,null,null,null,null,null,null,null,null,null,null,null,null,null,null,null,null,null,null,null,null,null,null,null,null,null,null,null,0,0,null,null,{"$error":"#DIV/0!"}]
["Corrine Grace",null,null,null,null,null,null,null,null,null,null,null,null,null,null,null,null,null,null,null,null,null,null,null,null,null,null,null,null,5,5,null,10,0,null,null,1]
["Lydia",null,null,null,null,null,null,null,null,null,null,null,null,null,null,null,null,null,null,null,null,null,null,null,null,null,null,null,null,null,null,null,0,0,null,null,{"$error":"#DIV/0!"}]
[" Romuald Davy",null,null,null,null,null,null,null,null,null,null,null,null,null,null,null,null,null,null,null,null,null,null,null,null,null,null,null,null,null,null,null,0,0,null,null,{"$error":"#DIV/0!"}]
[]
["Septembre ",null,null,null,null,null,null,null,null,null,null,null,null,null,null,null,null,null,null,null,null,null,null,null,null,null,null,null,null,null,null,null,null,null,null,null,"Jours ouvrés","Val. Max"]
[null,null,null,null,null,null,null,null,null,null,null,null,null,null,null,null,null,null,null,null,null,null,null,null,null,null,null,null,null,null,null,null,null,null,null,null,21,{"$f":"AK49*5","v":105}]
["Jours du mois","2019-09-01","2019-09-02","2019-09-03","2019-09-04","2019-09-05","2019-09-06","2019-09-07","2019-09-08","2019-09-09","2019-09-10","2019-09-11","2019-09-12","2019-09-13","2019-09-14","2019-09-15","2019-09-16","2019-09-17","2019-09-18","2019-09-19","2019-09-20","2019-09-21","2019-09-22","2019-09-23","2019-09-24","2019-09-25","2019-09-26","2019-09-27","2019-09-28","2019-09-29","2019-09-30","Total","Total",null,"Observations",null,"% Ponctualité"]
["Liste des agents",null,null,null,null,null,null,null,null,null,null,null,null,null,null,null,null,null,null,null,null,null,null,null,null,null,null,null,null,null,null,"HT","HA"]
["Patricia",null,null,null,null,null,null,null,null,null,null,null,null,null,null,null,null,null,null,null,null,null,null,null,null,null,null,null,null,null,5,{"$f":"SUMIF(B52:AE52,\"5\")","v":5},{"$f":"COUNTIF(A52:AE52,1)","v":0},null,null,null,{"$f":"AF52/(5*COUNTA(B52:AE52))","v":1}]
["Cornelia",null,null,null,null,null,null,null,null,null,null,null,null,null,null,null,null,null,null,null,null,null,null,null,null,null,null,null,null,null,5,{"$f":"SUMIF(B53:AE53,\"5\")","v":5},{"$f":"COUNTIF(A53:AE53,1)","v":0},null,null,null,{"$f":"AF53/(5*COUNTA(B53:AE53))","v":1}]
[" Orlane N",null,null,null,null,null,null,null,null,null,null,null,null,null,null,null,null,null,null,null,null,null,null,null,null,null,null,null,null,null,5,5,0,null,null,null,1]
["Corrine Grace",null,null,null,null,null,null,null,null,null,null,null,null,null,null,null,null,null,null,null,null,null,null,null,null,8,null,5,null,null,5,10,0,null,null,null,{"$f":"AF55/(5*COUNTA(C55:AE55))","v":0.66666666666666663}]
["Lydia",null,null,null,null,null,null,null,null,null,null,null,null,null,null,null,null,null,null,null,null,null,null,null,null,null,null,null,null,null,null,0,0,null,null,null,{"$error":"#DIV/0!"}]
[" Romuald Davy",null,null,null,null,null,null,null,null,null,null,null,null,null,null,null,null,null,null,null,null,null,null,null,null,null,null,null,null,null,null,0,0,null,null,null,{"$error":"#DIV/0!"}]
[]
["Octobre ",null,null,null,null,null,null,null,null,null,null,null,null,null,null,null,null,null,null,null,null,null,null,null,null,null,null,null,null,null,null,null,null,null,null,null,"Jours ouvrés","Val. Max"]
[null,null,null,null,null,null,null,null,null,null,null,null,null,null,null,null,null,null,null,null,null,null,null,null,null,null,null,null,null,null,null,null,null,null,null,null,23,{"$f":"AK60*5","v":115}]
["Jours du mois","2019-10-01","2019-10-02","2019-10-03","2019-10-04","2019-10-05","2019-10-06","2019-10-07","2019-10-08","2019-10-09","2019-10-10","2019-10-11","2019-10-12","2019-10-13","2019-10-14","2019-10-15","2019-10-16","2019-10-17","2019-10-18","2019-10-19","2019-10-20","2019-10-21","2019-10-22","2019-10-23","2019-10-24","2019-10-25","2019-10-26","2019-10-27","2019-10-28","2019-10-29","2019-10-30","2019-10-31","Total","Total","Observations",null,"% Ponctualité"]
["Liste des agents",null,null,null,null,null,null,null,null,null,null,null,null,null,null,null,null,null,null,null,null,null,null,null,null,null,null,null,null,null,null,null,"HT","HA"]
["Patricia",5,null,null,null,null,null,null,null,null,null,null,null,null,null,null,null,null,null,null,null,null,null,null,null,null,null,null,null,null,5,5,{"$f":"SUMIF(B63:AF63,\"5\")","v":15},{"$f":"COUNTIF(B63:AF63,1)","v":0},null,null,{"$f":"AF63/(5*COUNTA(B63:AF63))","v":0.33333333333333331}]
["Cornelia",null,null,null,null,null,null,null,null,null,null,null,null,null,null,null,null,null,null,null,null,null,null,null,null,null,null,null,null,null,5,5,{"$f":"SUMIF(B64:AF64,\"5\")","v":10},{"$f":"COUNTIF(B64:AF64,1)","v":0},null,null,{"$f":"AF64/(5*COUNTA(B64:AF64))","v":0.5}]
["Orlane N",null,null,null,null,null,null,null,null,null,null,null,null,null,null,null,null,null,null,null,null,null,null,null,null,null,null,null,null,null,8,null,0,0,null,null,0]
[" Corrine Grace",8,null,null,null,null,null,null,null,null,null,null,null,null,null,null,null,null,null,null,null,null,null,null,null,null,null,null,null,null,null,null,0,0,null,null,0]
[" Lydia",null,null,null,null,null,null,null,null,null,null,null,null,null,null,null,null,null,null,null,null,null,null,null,null,null,null,null,null,null,null,null,0,0,null,null,{"$error":"#DIV/0!"}]
[" Romuald Davy",null,null,null,null,null,null,null,null,null,null,null,null,null,null,null,null,null,null,null,null,null,null,null,null,null,null,null,null,null,null,null,0,0,null,null,{"$error":"#DIV/0!"}]
[]
["Novembre 2019",null,null,null,null,null,null,null,null,null,null,null,null,null,null,null,null,null,null,null,null,null,null,null,null,null,null,null,null,null,null,null,null,null,null,null,"Jours ouvrés","Val. Max"]
[null,null,null,null,null,null,null,null,null,null,null,null,null,null,null,null,null,null,null,null,null,null,null,null,null,null,null,null,null,null,null,null,null,null,null,null,20,{"$f":"AK71*5","v":100}]
["Jours du mois","2019-11-01","2019-11-02","2019-11-03","2019-11-04","2019-11-05","2019-11-06","2019-11-07","2019-11-08","2019-11-09","2019-11-10","2019-11-11","2019-11-12","2019-11-13","2019-11-14","2019-11-15","2019-11-16","2019-11-17","2019-11-18","2019-11-19","2019-11-20","2019-11-21","2019-11-22","2019-11-23","2019-11-24","2019-11-25","2019-11-26","2019-11-27","2019-11-28","2019-11-29","2019-11-30","Total","Total",null,"Observations",null,"% Ponctualité"]
["Liste des agents",null,null,null,null,null,null,null,null,null,null,null,null,null,null,null,null,null,null,null,null,null,null,null,null,null,null,null,null,null,null,"HT","HA"]
[" Patricia",null,null,null,null,null,null,null,null,null,null,null,null,null,null,null,null,null,null,null,5,null,null,null,null,null,null,5,5,null,null,{"$f":"SUM(B74:C74,F74:J74,M74:Q74,T74:X74,AA74:AC74,AE74)","v":15},{"$f":"COUNTIF(A74:AE74,1)","v":0},null,null,null,{"$f":"AG74/(5*COUNTA(B74:AF74))","v":0}]
[" Cornelia",null,null,null,null,null,null,null,null,null,null,null,null,null,null,null,null,null,null,null,null,null,null,null,null,null,null,null,null,null,null,{"$f":"SUM(B75:C75,F75:J75,M75:Q75,T75:X75,AA75:AC75,AE75)","v":0},{"$f":"COUNTIF(A75:AE75,1)","v":0},null,null,null,{"$f":"AG75/(5*COUNTA(B75:AF75))","v":0}]
[" Orlane N",null,null,null,null,null,null,null,null,null,null,null,null,null,null,null,null,null,null,null,null,null,null,null,null,null,null,null,null,null,null,0,0,null,null,null,0]
[" Corrine Grace",null,null,null,null,null,null,null,null,null,null,null,null,null,null,null,null,null,null,null,null,null,null,null,null,null,null,null,null,null,null,0,0,null,null,null,0]
[" Lydia",null,null,null,null,null,null,null,null,null,null,null,null,null,null,null,null,null,null,null,null,null,null,null,null,null,null,null,null,null,null,0,0,null,null,null,0]
[" Romuald Davy",null,null,null,null,null,null,null,null,null,null,null,null,null,null,null,null,null,null,null,null,null,null,null,null,null,null,null,null,null,null,0,0,null,null,null,0]
[]
["Décembre 2019",null,null,null,null,null,null,null,null,null,null,null,null,null,null,null,null,null,null,null,null,null,null,null,null,null,null,null,null,null,null,null,null,null,null,null,"Jours ouvrés","Val. Max"]
[null,null,null,null,null,null,null,null,null,null,null,null,null,null,null,null,null,null,null,null,null,null,null,null,null,null,null,null,null,null,null,null,null,null,null,null,21,{"$f":"AK82*5","v":105}]
["Jours du mois","2019-12-01","2019-12-02","2019-12-03","2019-12-04","2019-12-05","2019-12-06","2019-12-07","2019-12-08","2019-12-09","2019-12-10","2019-12-11","2019-12-12","2019-12-13","2019-12-14","2019-12-15","2019-12-16","2019-12-17","2019-12-18","2019-12-19","2019-12-20","2019-12-21","2019-12-22","2019-12-23","2019-12-24","2019-12-25","2019-12-26","2019-12-27","2019-12-28","2019-12-29","2019-12-30","2019-12-31","Total","Total","Observations",null,"% Ponctualité"]
["Liste des agents",null,null,null,null,null,null,null,null,null,null,null,null,null,null,null,null,null,null,null,null,null,null,null,null,null,null,null,null,null,null,null,"HT","HA"]
[" Patricia",null,null,null,null,null,null,null,null,null,null,null,null,null,null,null,null,null,null,null,null,null,null,null,null,null,null,5,null,null,5,null,{"$f":"SUM(C85:D85,G85:K85,N85:R85,U85:Y85,AB85:AD85,AE85:AF85)","v":10},{"$f":"COUNTIF(B85:AF85,1)","v":0},null,null,{"$f":"AG85/(5*COUNTA(B85:AF85))","v":1}]
["Cornelia",null,null,null,null,null,null,null,null,null,null,null,null,null,null,null,null,null,null,null,null,null,null,null,null,null,null,5,null,null,5,null,{"$f":"SUM(C86:D86,G86:K86,N86:R86,U86:Y86,AB86:AD86,AE86:AF86)","v":10},{"$f":"COUNTIF(B86:AF86,1)","v":0},null,null,{"$f":"AG86/(5*COUNTA(B86:AF86))","v":1}]
[" Orlane N",null,null,null,null,null,null,null,null,null,null,null,null,null,null,null,null,null,null,null,null,null,null,null,null,null,null,5,null,null,5,null,10,0,null,null,1]
[" Corrine Grace",null,null,null,null,null,null,null,null,null,null,null,null,null,null,null,null,null,null,null,null,null,null,null,null,null,null,5,null,null,5,null,10,0,null,null,1]
[" Lydia",null,null,null,null,null,null,null,null,null,null,null,null,null,null,null,null,null,null,null,null,null,null,null,null,null,null,5,null,null,5,null,10,0,null,null,1]
[" Romuald Davy",null,null,null,null,null,null,null,null,null,null,null,null,null,null,null,null,null,null,null,null,null,null,null,null,null,null,5,null,null,5,null,10,0,null,null,1]

{"sheet":"Feuil3","index":2,"n_rows":0,"n_cols":0,"rows_kept":0,"cut":false,"hidden":false,"merged":[]}